{"text_format":"2","workbook":"xlsx","n_sheets":1,"sheets":["Informe 5"],"not_rendered":{"charts":0,"images":0,"macros":0,"external_links":70,"defined_names":4310,"comments":0,"pivot_tables":0},"unopened":[],"bounds":{"document_bytes":16777216,"sheet_cells":100000,"run_cost":"one","rows_first":2000,"rows_last":500,"rows_between":2000,"halvings":0,"cell_chars":16384,"cell_head_chars":4096},"cells_cut":0,"cells_raw":0,"read":"whole","date_system":"1900"}

{"sheet":"Informe 5","index":0,"n_rows":72,"n_cols":10,"rows_kept":72,"cut":false,"hidden":false,"merged":[[2,0,2,5]]}
["ENTEL PERU S.A.-2019-5 INGRESOS POR CATEGORÍA-17072020"]
[]
["INFORME 5: INGRESOS POR CATEGORÍA"]
[]
["Periodo de reporte: Al 31 de Diciembre 2019"]
[]
["Expresado en Miles Nuevos Soles","Cantidad de unidades","Ingresos","Ajuste por interconexión","Ingresos netos de interconexión","Número de nota",null,"unidad de medida"]
["TOTAL DE INGRESOS OPERATIVOS",null,{"$f":"SUM(C9:C70)","v":2790960485.2900004},{"$f":"SUM(D9:D70)","v":103661402.58},{"$f":"+C8-D8","v":2687299082.7100005}," ",null," "]
["Instalación Telefonía Fija de Abonado Urbano",null,null,0,{"$f":"+C9-D9","v":0}]
["Renta Telefonía Fija de Abonado Urbano",null,null,0,{"$f":"+C10-D10","v":0}]
["Llamadas locales Telefonía Fija de Abonado Urbano (DD)",13241039.25,914792.68,0,914792.68,null,null,"Minutos reales"]
["Llamadas fijo-móvil (DD)",null,null,0,0,null,null,"minutos"]
["Llamadas fijo-móvil (tarjetas)",null,null,0,0,null,null,"minutos"]
["Llamadas locales Telefonía Fija de Abonado Urbano (Tarjetas)",null,null,0,0,null,null,"minutos"]
["Llamadas LDN Telefonía Fija de Abonado Urbano (DD)",508801.77999999997,97271.319999999949,0,97271.319999999949,null,null,"Minutos reales"]
["Llamadas LDI Telefonía Fija de Abonado Urbano (DD)",null,null,0,0]
["Llamadas LDN Telefonía Fija de Abonado Urbano (Tarjetas)",null,null,0,0]
["Llamadas LDI Telefonía Fija de Abonado Urbano (Tarjetas)",null,null,0,0]
["Llamadas locales Telefonía Fija de TUP Urbano (Monedas)",null,null,0,0]
["Llamadas TUP-móvil (Monedas)",null,null,0,0]
["Llamadas locales Telefonía Fija de TUP Urbano (Tarjetas)",null,null,0,0]
["Llamadas TUP-móvil (Tarjetas)",null,null,0,0]
["Llamadas LDN Telefonía Fija de TUP Urbano (Monedas)",null,null,0,0]
["Llamadas LDI Telefonía Fija de TUP Urbano (Monedas)",null,null,0,0]
["Llamadas LDN Telefonía Fija de TUP Urbano (Tarjetas)",null,null,0,0]
["Llamadas LDI Telefonía Fija de TUP Urbano (Tarjetas)",null,null,0,0]
["Acceso Instalación Telefonía Fija de Abonado Rural",null,null,0,0]
["Acceso Renta Telefonía Fija de Abonado Rura",null,null,0,0]
["Llamadas locales Telefonía Fija de Abonado Rural (DD)",null,null,0,0]
["Llamadas fijo-móvil desde Abonado Rural (DD)",null,null,0,0]
["Llamadas locales Telefonía Fija de Abonado Rural (Tarjetas)",null,null,0,0]
["Llamadas fijo-móvil desde Abonado Rural (Tarjetas)",null,null,0,0]
["Llamadas LDN Telefonía Fija de Abonado Rural (DD)",null,null,0,0]
["Llamadas LDI Telefonía Fija de Abonado Rural (DD)",null,null,0,0]
["Llamadas LDN Telefonía Fija de Abonado Rural (Tarjetas)",null,null,0,0]
["Llamadas LDI Telefonía Fija de Abonado Rural (Tarjetas)",null,null,0,0]
["Llamadas locales Telefonía Fija de TUP Rural (Tarjetas y monedas)",null,null,0,0]
["Llamadas TUP-móvil (Tarjetas y monedas)",null,null,0,0]
["Llamadas LDN Telefonía Fija de TUP Rural (Tarjetas y monedas)",null,null,0,0]
["Llamadas LDI Telefonía Fija de TUP Rural (Tarjetas y monedas)",null,null,0,0]
["Instalación Televisión de Paga",null,null,0,0]
["Renta Básica Televisión de Paga",null,null,0,0]
["Servicio de canales adicionales Televisión de Paga",null,null,0,0]
["Instalación Internet Fijo",null,null,0,0]
["Prestación de servicios Internet Fijo",315914,91212979.309999987,0,91212979.309999987,null,null,"abonados BAFI"]
["Renta mensual por Voz Móvil",5475489,147111089.28999999,0,147111089.28999999,null,null,"abonados voz postpago"]
["Llamadas Locales de Voz Móvil por Telefonía Móvil",5170165658,179872789.74000001,0,179872789.74000001,null,null,"llamadas"]
["Llamadas LD de Voz Móvil por Telefonía Móvil",27289213,378590.04,0,378590.04,null,null,"llamadas"]
["Mensajes de texto Telefonía Móvil",1767097110,82142687.550000012,0,82142687.550000012,null,null,"SMS"]
["Roaming Internacional por Telefonía Móvil",1422202,15254398.989999998,0,15254398.989999998,null,null,"minutos"]
["Renta mensual de Internet Móvil por Telefonía Móvil",5787772,1019870434.37,0,1019870434.37,null,null,"abonados int movil postpago"]
["Consumo no incluido en la renta mensual Internet Móvil",25609279582,107309747.27,0,107309747.27,null,null,"Megas"]
["Servicios Suplementarios","ND",50909886.560000002,0,50909886.560000002]
["Servicios de valor añadido (no incluye Internet)","ND",15536872.68,0,15536872.68]
["Suministro de Equipos",9213142,941849972.27000022,0,941849972.27000022,null,null,"Unidades equipos y chips, incluye reposiciones y alquilados"]
["Instalación para otros operadores",null,306085.01123589429,0,306085.01123589429]
["Instalación para clientes privados",null,21149.813000000002,0,21149.813000000002]
["Alquiler y Transmisión a otros operadores",1758,5315704.1647525243,0,5315704.1647525243,null,null,"Mbps"]
["Alquiler y Transmisión a clientes privados",180341,1207223.5690369473,0,1207223.5690369473,null,null,"Mbps"]
["Provisión de acceso a Empresas Emisoras de Dinero Electrónico (EEDE)",0,0,0,0,null,null,"transacciones USSD"]
["Transporte Conmutado Local",null,null,0,0]
["Transporte Conmutado de Larga Distancia Naciona",null,null,0,0]
["Acceso a los Teléfonos de Uso Público",null,null,0,0]
["Terminación de Llamadas en la Red de Servicio Móvil",9139069556.7367325,93440821.059999987,103161112.51038817,{"$f":"+C64-D64","v":-9720291.4503881782},null,null,"Minutos reales",null," "]
["Terminación de Llamadas en la Red del Servicio de Telefonía Fija Local",26133932.404899992,453150.55000000005,500290.06961183366,-47139.519611833617,null,null,"Minutos reales",null," "]
["Facturación y Recaudación",60761,635.80999999999995,null,635.80999999999995,null,null,"Recibos"]
["Adecuación de Red",704,614463.42999999993,null,614463.42999999993," ",null,"# enlaces"]
["Acceso a la Plataforma de Pago",79158,43.75,null,43.75," ",null,"Minutos reales"]
["Enlaces de Interconexión",24,66370.84,null,66370.84," ",null,"# enlaces de interconexión"," "]
["Otros",null,37073325.221974641,0,37073325.221974641]
[]
[null,null,0]